bitfinex/quotes_ETHUSD_20250611
["timestamp","ask_amount","ask_price","bid_price","bid_amount"]
[1749606220203,0.04,2777.9,2777.8,36.06275867]
[1749606223115,3.731459,2777.9,2777.8,36.06275867]
[1749606224009,3.731459,2777.9,2777.8,37.13075867]
[1749606224209,1.0641,2779.1,2778.0,10.0]
[1749606224421,1.0641,2779.5,2778.2,43.48271]
[1749606224587,3.85,2779.4,2778.6,33.48271]
[1749606224907,3.85,2779.4,2778.7,1.068]
[1749606224908,3.849,2779.4,2778.7,1.068]
[1749606226219,3.846,2779.4,2778.7,1.068]
[1749606226425,3.846,2779.4,2778.5,0.4463]
[1749606226426,3.846,2779.4,2778.8,1.068]
[1749606226627,1.4617,2779.9,2778.8,24.55071]
[1749606226828,3.846,2779.6,2778.8,25.58951]
[1749606227125,0.04,2779.9,2779.0,3.59839801]
[1749606227328,0.04,2779.9,2778.9,23.48271]
[1749606227329,0.04,2779.9,2778.9,23.89557505]
[1749606227511,0.04,2779.9,2779.0,3.59838658]
[1749606227821,0.04,2779.9,2779.1,23.48271]
[1749606228046,0.04,2779.9,2779.3,33.48271]
[1749606228226,0.04,2779.9,2779.3,23.48271]
[1749606228412,0.04,2779.9,2779.0,10.0]
[1749606228596,0.04,2779.9,2779.1,23.48271]
[1749606229333,0.04,2779.9,2779.2,23.48271]
[1749606229497,0.04,2779.9,2779.4,33.48271]
[1749606229701,0.04,2779.9,2779.5,23.48271]
[1749606230203,0.04,2779.9,2779.7,23.48271]
[1749606234741,1.0971,2779.9,2779.6,10.0]
[1749606235043,1.0971,2779.9,2779.6,10.63834331]
[1749606235044,0.04,2779.9,2779.6,10.63834331]
[1749606235211,0.04,2779.9,2779.8,10.0]
[1749606236746,0.04,2779.9,2779.8,1.054]
[1749606237243,20.04,2779.9,2779.8,1.054]
[1749606237443,22.044,2779.9,2779.8,1.054]
[1749606237609,0.3593,2779.8,2779.7,9.313]
[1749606237814,22.044,2779.9,2779.7,10.367]
[1749606238035,22.044,2779.9,2779.7,9.313]
[1749606238239,29.98906324,2779.9,2779.7,9.313]
[1749606238510,8.27873632,2779.8,2779.7,9.313]
[1749606238714,8.27873632,2779.8,2779.7,10.367]
[1749606239951,8.27573632,2779.8,2779.7,10.367]
[1749606240663,8.27673632,2779.8,2779.7,10.367]
[1749606241367,8.27673632,2779.8,2779.7,9.313]
[1749606241668,8.27673632,2779.8,2779.7,10.367]
[1749606243167,7.91743632,2779.8,2779.7,10.367]
[1749606244461,4.08443632,2779.8,2779.7,10.367]
[1749606244665,1.0496,2779.8,2779.7,10.367]
[1749606244964,3.825,2779.8,2779.7,10.367]
[1749606245330,13.28747847,2779.8,2779.7,9.313]
[1749606245532,13.28747847,2779.8,2779.7,10.367]
[1749606245926,20.04,2779.9,2779.7,10.367]
[1749606246331,3.827,2779.8,2779.7,10.367]
[1749606247770,3.827,2779.8,2779.7,9.313]
[1749606247933,3.827,2779.8,2779.7,10.367]
[1749606249172,7.15994785,2779.8,2779.7,9.313]
[1749606249342,8.25854785,2779.8,2779.7,10.367]
[1749606249874,8.80854785,2779.8,2779.7,10.367]
[1749606250055,0.55,2779.4,2777.2,9.46247847]
[1749606250259,9.46247847,2778.6,2777.8,23.48271]
[1749606250588,3.826,2778.5,2778.1,10.0]
[1749606250730,3.826,2778.5,2777.9,12.38370251]
[1749606250930,3.826,2778.5,2776.6,3.60144793]
[1749606250931,3.826,2778.5,2777.7,10.0]
[1749606251135,3.826,2778.5,2777.5,33.48271]
[1749606251368,3.826,2778.5,2777.5,27.08306082]
[1749606251535,3.826,2778.5,2777.6,23.48271]
[1749606251959,3.826,2778.5,2777.5,4.22834613]
[1749606251960,3.826,2778.5,2777.9,10.0]
[1749606252157,3.826,2778.5,2776.4,5.0]
[1749606252158,9.46247847,2778.3,2776.4,5.0]
[1749606252358,3.826,2778.5,2777.1,0.40814575]
[1749606252359,9.46247847,2778.0,2777.1,0.40814575]
[1749606252565,9.46247847,2777.7,2777.1,0.04]
[1749606252793,3.829,2777.6,2777.1,0.04]
[1749606254595,1.1567,2777.7,2777.1,0.04]
[1749606254799,3.825,2777.6,2777.1,0.04]
[1749606255095,3.825,2777.6,2777.3,10.0]
[1749606257597,3.825,2777.6,2777.4,1.055]
[1749606258562,3.825,2777.6,2777.5,1.055]
[1749606261688,3.817,2777.6,2777.5,1.055]
[1749606262786,4.1763,2777.6,2777.5,1.055]
[1749606263879,0.3593,2777.6,2777.5,1.055]
[1749606264082,6.88822913,2778.1,2777.5,1.055]
[1749606264083,1.0965,2778.6,2777.6,23.48271]
[1749606264284,1.0965,2778.6,2777.5,12.1605]
[1749606264285,1.0965,2779.0,2777.8,33.48271]
[1749606264485,1.0965,2779.0,2778.0,10.0]
[1749606264727,1.0965,2779.0,2777.8,3.59985953]
[1749606264873,1.0965,2779.0,2777.7,3.827]
[1749606264874,3.827,2779.0,2778.2,33.48271]
[1749606265071,3.827,2779.0,2778.5,10.0]
[1749606265704,1.4558,2779.3,2778.7,10.0]
[1749606265705,0.3593,2779.3,2778.7,10.0]
[1749606266017,4.9808,2779.7,2778.9,10.0]
[1749606266171,4.9808,2779.7,2779.1,10.0]
[1749606266372,4.9808,2779.7,2779.2,1.04]
[1749606267510,6.88822913,2779.4,2779.1,10.0]
[1749606267710,1.1148,2779.3,2779.0,9.318]
[1749606267888,1.6648,2779.3,2779.2,1.04]
[1749606268114,5.4918,2779.3,2779.2,1.04]
[1749606269112,12.38002913,2779.3,2779.2,1.04]
[1749606269318,13.61803204,2779.3,2779.2,1.04]
[1749606269482,0.55,2779.2,2779.0,9.318]
[1749606269682,0.55,2779.2,2779.1,1.04]
[1749606272816,5.25,2779.2,2779.1,1.04]
[1749606273615,15.25,2779.2,2779.1,1.04]
[1749606273804,18.1177332,2779.2,2778.0,10.0893]
[1749606274010,18.1177332,2779.2,2778.1,1.04]
[1749606275122,18.1177332,2779.2,2778.2,9.316]
[1749606275694,18.1177332,2779.2,2778.2,9.67228668]
[1749606276322,1.152,2779.1,2778.3,1.04]
[1749606276623,3.815,2779.0,2778.3,1.04]
[1749606277320,13.28284185,2779.0,2778.3,1.04]
[1749606277685,0.3593,2778.9,2778.3,1.04]
[1749606279899,0.3593,2778.8,2778.3,1.04]
[1749606280099,3.809,2778.7,2778.4,0.0893]
[1749606280296,3.809,2778.7,2778.4,1.16945867]
[1749606281390,3.809,2778.7,2778.5,1.04]
[1749606283044,0.3593,2779.1,2778.6,23.48271]
[1749606283209,0.3593,2779.0,2778.7,10.0]
[1749606283386,0.3593,2779.0,2778.6,23.48271]
[1749606283726,0.3593,2779.0,2778.7,1.92079496]
[1749606284223,4.1663,2779.1,2778.5,11.04]
[1749606284686,4.1663,2779.1,2778.5,1.04]
[1749606284885,4.1663,2779.1,2778.7,10.0]
[1749606285492,4.1663,2779.1,2778.5,10.0]
[1749606285686,4.1663,2779.1,2778.6,1.00893]
[1749606285924,4.1663,2779.1,2778.6,1.04]
[1749606287794,4.1663,2779.1,2778.7,1.04]
[1749606288127,3.8,2779.2,2778.7,1.04]
[1749606288433,0.3593,2779.1,2778.8,10.0893]
[1749606288737,1.1673,2779.7,2778.8,10.0893]
[1749606288738,3.799,2779.5,2778.9,1.11293]
[1749606289316,0.3593,2779.8,2779.0,33.48271]
[1749606289521,20.04,2779.9,2779.2,33.48271]
[1749606289732,20.04,2779.9,2779.6,10.0893]
[1749606289944,20.04,2779.9,2779.8,10.0]
[1749606290927,20.04,2779.9,2779.8,33.48271]
[1749606291106,20.04,2779.9,2779.8,33.57201]
[1749606291637,20.04,2779.9,2779.8,34.13232544]
[1749606291959,0.3993,2780.9,2780.0,10.0]
[1749606292160,0.04,2780.9,2780.2,10.0]
[1749606292319,0.04,2780.9,2780.1,10.14498595]
[1749606292519,0.04,2780.9,2780.4,10.0]
[1749606292762,0.04,2780.9,2780.5,1.028]
[1749606295527,0.04,2780.9,2780.5,1.39231966]
[1749606296925,0.04,2780.9,2780.8,10.0]
[1749606297247,0.04,2780.9,2780.6,0.0893]
[1749606298358,0.04,2780.9,2780.8,10.0]
[1749606298545,0.04,2780.9,2780.8,35.39607496]
[1749606299463,0.04,2780.9,2780.8,24.14436496]
[1749606299766,0.04,2780.9,2780.8,1.028]
[1749606300988,0.04,2780.9,2780.8,24.51071]
[1749606301163,0.04,2780.9,2780.8,34.51071]
[1749606301973,0.04,2781.9,2780.8,34.51071]
[1749606301974,3.83,2781.9,2780.9,10.0]
[1749606302127,3.83,2781.9,2780.8,33.57201]
[1749606302128,1.1404,2781.7,2781.0,1.028]
[1749606302832,3.83,2781.9,2781.0,1.028]
[1749606303150,0.04,2781.9,2781.1,1.028]
[1749606303376,0.04,2781.9,2781.3,10.0]
[1749606303753,0.04,2781.9,2781.8,10.0]
[1749606303984,0.04,2781.9,2781.4,0.0889]
[1749606304187,0.04,2781.9,2781.8,10.0]
[1749606304350,0.04,2781.9,2781.8,1.028]
[1749606304995,0.04,2781.9,2781.8,34.51071]
[1749606305600,0.04,2781.9,2781.8,34.59961]
[1749606305822,0.04,2781.9,2781.8,33.57161]
[1749606306012,0.04,2781.9,2781.8,11.028]
[1749606306161,1.0928,2781.7,2780.8,23.48271]
[1749606306486,1.0928,2780.8,2780.1,9.307]
[1749606306803,1.0812,2780.6,2780.2,1.028]
[1749606307123,1.0812,2780.4,2780.2,1.028]
[1749606307486,3.861,2780.3,2780.2,1.028]
[1749606307793,10.74127293,2780.3,2780.1,9.307]
[1749606308010,3.861,2780.3,2780.2,1.028]
[1749606308159,1.0812,2780.4,2780.2,1.028]
[1749606308374,3.86,2780.3,2780.1,9.307]
[1749606308569,3.86,2780.3,2780.2,1.028]
[1749606309921,10.74027293,2780.3,2780.1,9.307]
[1749606310075,10.74027293,2780.3,2780.2,1.028]
[1749606310267,12.47242022,2780.3,2780.2,1.028]
[1749606310674,12.47242022,2780.3,2780.1,9.307]
[1749606311087,0.55,2780.2,2780.1,9.307]
[1749606311382,2.52748419,2780.2,2780.1,10.335]
[1749606312420,2.52748419,2780.2,2780.1,9.307]
[1749606312720,4.07805473,2780.2,2780.1,10.335]
[1749606315638,4.07805473,2780.2,2779.1,0.04]
[1749606315639,1.638,2780.0,2779.9,9.311]
[1749606315922,9.36405712,2780.0,2779.9,10.339]
[1749606316128,9.36405712,2780.0,2779.1,0.04]
[1749606316129,0.55,2779.7,2779.1,0.04]
[1749606316433,0.55,2779.9,2779.1,0.04]
[1749606316434,8.51827293,2779.2,2779.1,0.04]
[1749606316584,1.088,2779.2,2779.1,1.068]
[1749606316786,4.942,2779.2,2779.1,1.068]
[1749606317929,1.088,2779.2,2779.1,1.068]
[1749606318139,4.944,2779.2,2779.1,1.068]
[1749606320337,6.12642729,2779.2,2779.1,1.068]
[1749606320545,6.67642729,2779.2,2779.1,1.068]
[1749606321244,6.67642729,2779.2,2779.1,0.04]
[1749606321449,6.67642729,2779.2,2779.1,1.1]
[1749606322842,7.03572729,2779.2,2779.1,1.1]
[1749606323970,4.934,2779.2,2779.1,1.1]
[1749606324187,4.2056,2779.2,2779.1,1.1]
[1749606324479,4.2056,2779.2,2779.1,0.04]
[1749606324630,4.2056,2779.2,2779.1,1.1]
[1749606325275,4.2056,2779.2,2779.1,10.414]
[1749606325578,0.3596,2779.2,2779.1,10.414]
[1749606325777,4.2106,2779.2,2779.1,10.414]
[1749606326453,0.3596,2779.2,2779.1,10.414]
[1749606326661,4.2086,2779.2,2779.1,10.414]
[1749606327236,0.3596,2779.2,2779.1,10.414]
[1749606327430,4.2086,2779.2,2779.1,10.414]
[1749606327869,5.86748729,2779.2,2779.1,9.354]
[1749606328055,5.86748729,2779.2,2779.1,10.414]
[1749606328586,6.97728729,2779.2,2779.1,10.414]
[1749606329347,16.44851584,2779.2,2779.1,10.414]
[1749606330242,16.44851584,2779.2,2778.1,0.04]
[1749606330243,0.9096,2778.9,2778.1,0.04]
[1749606330451,9.47122855,2778.4,2778.2,1.06]
[1749606330775,3.844,2778.3,2778.2,1.06]
[1749606335169,3.844,2778.3,2778.2,20.376]
[1749606336164,3.844,2778.3,2778.2,19.316]
[1749606336795,13.31522855,2778.3,2778.2,20.376]
[1749606336999,13.31522855,2778.3,2778.2,19.316]
[1749606337212,15.00635141,2778.3,2778.2,20.376]
[1749606337896,20.90305141,2778.3,2778.2,10.376]
[1749606338099,22.30061188,2778.3,2778.2,10.376]
[1749606340397,22.28561188,2778.3,2778.2,10.376]
[1749606340778,18.45661188,2778.3,2778.2,10.376]
[1749606340981,22.28661188,2778.3,2778.2,10.376]
[1749606341184,22.28661188,2778.3,2777.1,0.04]
[1749606341185,0.9096,2778.0,2777.1,0.04]
[1749606341386,0.55,2777.3,2777.1,0.04]
[1749606341697,4.1986,2777.2,2777.1,0.04]
[1749606342784,3.839,2777.2,2777.1,0.04]
[1749606342990,5.0082,2777.2,2777.1,0.04]
[1749606345110,5.0082,2777.2,2777.1,10.419]
[1749606345315,5.5582,2777.2,2777.1,10.419]
[1749606345487,7.07216255,2777.2,2777.1,10.419]
[1749606347582,7.06216255,2777.2,2777.1,10.419]
[1749606348538,2.68316255,2777.2,2777.1,10.419]
[1749606348739,4.67256747,2777.2,2777.1,10.419]
[1749606349726,0.84556747,2777.2,2777.1,10.419]
[1749606349937,13.29622855,2777.2,2777.1,10.419]
[1749606351428,14.14124482,2777.2,2777.1,10.419]
[1749606352940,14.50084482,2777.2,2777.1,10.419]
[1749606353140,13.65582855,2777.2,2777.1,10.419]
[1749606354405,0.3596,2777.2,2777.1,10.419]
[1749606354609,0.3596,2777.2,2777.1,11.4609]
[1749606354946,0.3596,2777.5,2777.2,1.1612]
[1749606355102,4.7,2777.7,2777.2,1.1612]
[1749606355103,0.3596,2777.3,2777.2,1.1612]
[1749606355303,3.822,2777.3,2777.2,1.1612]
[1749606355507,3.822,2777.3,2777.2,3.42341]
[1749606355907,4.7,2777.7,2777.3,10.0]
[1749606356109,3.822,2777.6,2777.3,10.0]
[1749606356762,3.822,2777.5,2777.3,10.0]
[1749606357315,3.822,2777.5,2777.3,0.2083124]
[1749606357635,4.7,2777.7,2777.3,1.50677091]
[1749606358016,0.3596,2778.2,2777.4,24.63691]
[1749606358261,3.819,2778.1,2777.5,1.1542]
[1749606358473,3.819,2778.0,2777.5,1.1542]
[1749606358668,9.47122855,2777.8,2777.5,1.1542]
[1749606358977,3.819,2777.7,2777.6,1.043]
[1749606361474,9.83082855,2778.1,2777.5,1.1542]
[1749606361766,3.815,2778.0,2777.6,1.043]
[1749606362182,3.815,2778.0,2777.5,1.1542]
[1749606362382,3.815,2778.0,2777.7,1.043]
[1749606362737,9.47122855,2777.8,2777.5,1.1542]
[1749606362965,3.814,2777.7,2777.6,1.043]
[1749606363368,3.814,2777.7,2777.5,1.1542]
[1749606363541,3.814,2777.7,2777.6,1.043]
[1749606365959,5.0166,2777.7,2777.6,9.32]
[1749606366160,3.814,2777.7,2777.6,10.363]
[1749606366470,10.67382855,2777.9,2777.6,10.363]
[1749606366672,3.809,2777.8,2777.6,10.363]
[1749606366865,13.28022855,2777.8,2777.6,10.363]
[1749606367176,3.808,2777.7,2777.6,10.363]
[1749606367865,9.47122855,2777.8,2777.6,10.363]
[1749606368071,3.807,2777.7,2777.6,10.363]
[1749606370579,3.804,2777.7,2777.6,10.363]
[1749606370874,3.79860219,2777.7,2777.6,10.363]
[1749606371286,5.12558526,2777.7,2777.6,10.363]
[1749606371974,6.31228526,2777.7,2777.6,10.363]
[1749606373076,6.31228526,2777.7,2777.6,9.32]
[1749606373281,6.31228526,2777.7,2777.6,10.363]
[1749606376600,6.31228526,2777.7,2777.6,9.32]
[1749606376799,6.31228526,2777.7,2777.1,0.04]
[1749606376800,0.55,2777.6,2777.1,0.04]
[1749606377101,3.796,2777.5,2777.2,10.363]
[1749606377267,0.55,2777.4,2777.3,1.043]
[1749606377662,0.99082853,2777.6,2777.3,1.043]
[1749606377867,0.3596,2777.9,2777.3,11.043]
[1749606378062,9.47122855,2778.4,2777.4,1.1315]
[1749606378297,3.799,2778.3,2777.6,10.0]
[1749606378623,13.27022855,2778.3,2777.7,1.1315]
[1749606378805,0.3596,2778.2,2777.7,1.1315]
[1749606380220,9.47122855,2778.0,2777.4,1.0949]
[1749606380400,3.799,2777.9,2777.4,1.0949]
[1749606382390,3.799,2777.9,2777.5,1.025]
[1749606383094,0.3596,2778.1,2777.5,1.025]
[1749606383300,3.792,2778.0,2777.6,0.21199]
[1749606383500,3.793,2777.9,2777.6,0.21199]
[1749606383694,3.793,2777.9,2777.6,10.21199]
[1749606384288,3.793,2777.9,2777.5,1.025]
[1749606384621,3.793,2777.9,2777.5,11.025]
[1749606384921,9.47122855,2777.7,2777.5,1.025]
[1749606385121,3.79,2777.6,2777.5,1.025]
[1749606386318,13.26122855,2777.6,2777.3,10.0]
[1749606386523,13.26122855,2777.6,2777.2,9.32]
[1749606386524,16.24565141,2777.6,2777.4,1.025]
[1749606386933,16.24565141,2777.6,2777.2,9.32]
[1749606387156,9.47122855,2777.3,2777.2,9.32]
[1749606387460,13.81322855,2777.3,2777.2,10.345]
[1749606390135,1.1883,2777.6,2777.2,10.345]
[1749606390413,4.7,2777.8,2777.3,10.0]
[1749606390414,3.789,2777.5,2777.3,10.0]
[1749606390737,3.791,2777.4,2777.3,10.0]
[1749606392436,20.0,2777.9,2777.3,10.0]
[1749606392756,3.789,2777.8,2777.3,10.0]
[1749606392949,3.789,2777.8,2777.3,12.25517]
[1749606394833,14.40552855,2777.8,2777.4,1.025]
[1749606395565,14.40552855,2777.8,2777.3,10.0]
[1749606395770,14.40552855,2777.8,2777.5,1.025]
[1749606395939,4.9343,2777.8,2777.3,10.0]
[1749606396139,14.40552855,2777.8,2777.4,1.025]
[1749606396339,0.59785957,2777.7,2777.4,1.025]
[1749606397167,19.10552855,2777.8,2777.4,1.025]
[1749606399439,4.7,2777.8,2777.5,1.1449]
[1749606399636,20.0,2777.9,2777.5,1.1449]
[1749606399841,3.792,2777.8,2777.5,1.1449]
[1749606400078,20.0,2777.9,2777.6,1.21699]
[1749606400393,20.0,2777.9,2777.7,1.1899]
[1749606400592,23.791,2777.9,2777.8,1.1899]
[1749606400742,23.791,2777.9,2777.8,11.1899]
[1749606401142,23.791,2777.9,2777.8,1.1899]
[1749606401382,23.791,2777.9,2777.8,1.430589]
[1749606402054,23.791,2777.9,2777.8,1.1899]
[1749606402255,23.791,2777.9,2777.8,1.024]
[1749606402940,33.26222855,2777.9,2777.8,1.024]
[1749606404046,23.789,2777.9,2777.8,1.024]
[1749606406940,20.0,2777.9,2777.8,1.024]
[1749606407279,23.787,2777.9,2777.8,1.024]
[1749606408966,20.0,2777.9,2777.8,1.024]
[1749606409169,20.0,2777.9,2777.8,2.1808]
[1749606409382,23.784,2777.9,2777.8,2.39888]
[1749606409692,23.784,2777.9,2777.8,2.1808]
[1749606412498,23.784,2777.9,2777.8,1.024]
[1749606412897,23.779,2777.9,2777.8,1.024]
[1749606413681,20.0,2777.9,2777.8,1.024]
[1749606413881,23.778,2777.9,2777.8,2.1264]
[1749606414077,20.0,2777.9,2777.8,2.1264]
[1749606414282,23.777,2777.9,2777.8,1.024]
[1749606415616,23.777,2777.9,2777.8,1.2167]
[1749606416909,20.0,2777.9,2777.8,10.5337]
[1749606417078,23.773,2777.9,2777.8,10.5337]
[1749606419625,23.773,2777.9,2777.8,1.016]
[1749606420814,23.773,2777.9,2777.2,10.0]
[1749606420998,23.773,2777.9,2777.4,22.34]
[1749606421198,3.767,2777.8,2777.4,22.34]
[1749606421995,3.767,2777.8,2777.5,1.016]
[1749606422394,3.767,2777.8,2777.2,33.48271]
[1749606422603,3.767,2777.8,2777.6,1.016]
[1749606423220,13.23822855,2777.8,2777.1,0.04]
[1749606423399,20.0,2777.9,2777.7,1.016]
[1749606423604,23.77,2777.9,2777.8,23.48271]
[1749606425167,23.77,2777.9,2777.8,32.79971]
[1749606425662,20.0,2777.9,2777.8,36.181281]
[1749606425846,23.767,2777.9,2777.8,36.181281]
[1749606426026,20.0,2777.9,2777.8,36.181281]
[1749606426238,23.767,2777.9,2777.8,36.181281]
[1749606427687,23.767,2777.9,2777.8,16.920571]
[1749606427986,23.767,2777.9,2777.8,13.539]
[1749606429883,16.62719853,2777.9,2777.8,13.539]
[1749606430044,15.39719853,2777.9,2777.8,13.539]
[1749606430475,15.39719853,2777.9,2777.8,4.222]
[1749606430893,8.02208696,2777.9,2777.8,18.3719712]
[1749606431048,6.09115855,2777.9,2777.8,21.18919656]
[1749606431248,4.29401314,2777.9,2777.8,21.18919656]
[1749606431479,2.87291314,2777.9,2777.8,21.18919656]
[1749606431666,0.5070575,2777.9,2777.8,21.18919656]
[1749606431868,0.5070575,2777.9,2777.8,20.17319656]
[1749606432067,3.767,2778.3,2778.0,23.48271]
[1749606432264,3.767,2778.4,2778.2,33.48271]
[1749606432484,1.1657,2779.1,2778.2,23.48271]
[1749606432682,3.767,2779.0,2778.2,23.48271]
[1749606434193,1.1657,2779.1,2778.2,23.48271]
[1749606434390,1.1657,2779.4,2778.3,10.0]
[1749606434701,3.767,2779.3,2778.5,23.48271]
[1749606434865,3.767,2779.2,2778.6,23.48271]
[1749606435067,1.1671,2779.8,2778.7,10.332]
[1749606435278,3.767,2779.7,2778.8,23.48271]
[1749606435496,5.21095739,2779.7,2778.8,0.95175555]
[1749606435699,5.21095739,2779.7,2778.9,10.0]
[1749606436909,9.46547394,2779.6,2778.8,23.48271]
[1749606437208,1.1671,2779.5,2778.8,23.48271]
[1749606437504,3.766,2779.4,2778.8,23.48271]
[1749606437704,2.80490574,2779.5,2778.8,23.48271]
[1749606438005,3.766,2779.3,2778.8,23.48271]
[1749606438825,19.46547394,2779.8,2778.8,23.48271]
[1749606438826,1.1503,2779.8,2778.8,23.48271]
[1749606439011,3.766,2779.7,2778.8,23.48271]
[1749606440019,0.04,2779.9,2778.9,10.0]
[1749606440221,3.766,2779.8,2779.1,23.48271]
[1749606441826,0.04,2779.9,2779.1,23.48271]
[1749606441827,0.04,2779.9,2779.4,23.48271]
[1749606442027,0.04,2779.9,2779.6,33.48271]
[1749606442191,0.04,2779.9,2779.6,23.48271]
[1749606442389,0.04,2779.9,2779.8,10.0]
[1749606442628,0.04,2779.9,2779.7,0.42070991]
[1749606446901,0.04,2779.9,2779.8,9.313]
[1749606447102,0.04,2779.9,2779.8,32.79571]
[1749606447307,0.04,2780.9,2779.8,32.79571]
[1749606447308,1.1038,2780.7,2779.8,32.79571]
[1749606447628,1.1038,2780.7,2780.0,23.48271]
[1749606451359,0.04,2780.9,2780.0,23.48271]
[1749606451360,0.04,2780.9,2780.3,6.19019025]
[1749606451561,1.0808,2781.3,2780.6,33.48271]
[1749606451773,6.19019025,2781.6,2780.8,10.0]
[1749606451774,1.0808,2781.5,2780.8,10.0]
[1749606451925,1.0808,2781.5,2780.7,0.44733892]
[1749606451926,0.04,2781.9,2781.3,6.19019025]
[1749606452250,0.04,2781.9,2781.5,23.48271]
[1749606452413,0.04,2781.9,2781.4,1.008]
[1749606452414,0.04,2781.9,2781.6,9.4803]
[1749606453039,0.04,2781.9,2781.6,10.89575452]
[1749606453342,0.04,2781.9,2781.6,10.72645452]
[1749606453546,0.04,2781.9,2781.6,9.67762452]
[1749606453711,10.67673121,2781.8,2781.6,9.311]
[1749606453932,1.2321,2781.7,2781.6,9.311]
[1749606454132,13.763,2781.7,2781.6,9.311]
[1749606454432,14.9951,2781.7,2781.6,10.319]
[1749606454631,17.44307312,2781.7,2781.6,10.319]
[1749606454861,13.68007312,2781.7,2781.6,10.319]
[1749606455079,7.44307312,2781.7,2781.6,10.319]
[1749606455927,3.68007312,2781.7,2781.6,10.319]
[1749606456159,4.9951,2781.7,2781.6,10.319]
[1749606456380,20.04,2781.9,2781.8,43.48271]
[1749606456551,20.04,2781.9,2781.6,9.311]
[1749606456754,20.04,2781.9,2781.7,1.008]
[1749606456968,21.2885,2781.9,2781.7,1.008]
[1749606457960,25.0515,2781.9,2781.7,1.008]
[1749606458156,25.0515,2781.9,2781.7,12.0399]
[1749606458157,23.803,2781.9,2781.7,12.0399]
[1749606458547,23.803,2781.9,2781.7,2.0399]
[1749606459478,20.04,2781.9,2781.7,2.0399]
[1749606459685,23.803,2781.9,2781.7,2.0399]
[1749606459989,20.04,2781.9,2781.8,23.48271]
[1749606460284,20.04,2781.9,2781.8,36.21979091]
[1749606460682,20.04,2781.9,2781.8,40.43972742]
[1749606461285,18.67614,2781.9,2781.8,41.38831623]
[1749606461492,18.67614,2781.9,2781.8,37.39493269]
[1749606462300,18.67614,2781.9,2781.8,36.84493269]
[1749606463808,18.57826092,2781.9,2781.8,36.84493269]
[1749606464498,18.57826092,2781.9,2781.8,30.03892269]
[1749606464699,18.57826092,2781.9,2781.6,23.48271]
[1749606464898,18.57826092,2781.9,2781.7,10.0]
[1749606465112,18.57826092,2781.9,2781.8,33.79371]
[1749606466399,18.57826092,2781.9,2781.8,32.78671]
[1749606466599,18.57826092,2781.9,2781.8,10.311]
[1749606466761,19.39554254,2781.9,2781.8,10.311]
[1749606468299,22.33926092,2781.9,2781.8,10.311]
[1749606469521,22.34226092,2781.9,2781.8,10.311]
[1749606471727,22.34126092,2781.9,2781.8,10.311]
[1749606475229,22.34126092,2781.9,2781.8,9.304]
[1749606475529,23.56946092,2781.9,2781.8,10.311]
[1749606476028,19.80646092,2781.9,2781.8,10.311]
[1749606476218,22.34326092,2781.9,2781.8,10.311]
[1749606476938,22.34326092,2781.9,2781.8,11.3421]
[1749606481145,18.57826092,2781.9,2781.8,48.58890473]
[1749606481314,18.57826092,2781.9,2781.8,49.42174286]
[1749606481315,8.4110255,2781.9,2781.8,49.42174286]
[1749606481508,8.4110255,2781.9,2781.8,43.98711]
[1749606481842,8.4110255,2781.9,2781.8,10.311]
[1749606482332,9.6178255,2781.9,2781.8,9.304]
[1749606482502,9.6178255,2781.9,2781.8,10.311]
[1749606482705,10.46862564,2781.9,2781.8,10.311]
[1749606483020,10.46862564,2781.9,2781.8,9.304]
[1749606483332,13.3838255,2781.9,2781.8,10.311]
[1749606484051,13.3848255,2781.9,2781.8,10.311]
[1749606484226,8.4110255,2781.9,2781.8,10.311]
[1749606484425,12.1770255,2781.9,2781.8,10.311]
[1749606485213,12.1770255,2781.9,2781.8,11.3421]
[1749606486054,12.1770255,2781.9,2781.8,10.311]
[1749606486741,8.4110255,2781.9,2781.8,43.92441]
[1749606489334,8.4110255,2781.9,2781.8,47.51920473]
[1749606489944,8.4110255,2781.9,2781.8,43.92441]
[1749606490639,8.4110255,2781.9,2781.8,47.51920473]
[1749606492724,2.62276231,2781.9,2781.8,51.83120473]
[1749606492929,3.8292285,2782.5,2781.8,51.83120473]
[1749606492930,3.8292285,2782.5,2782.4,33.48271]
[1749606493137,3.8292285,2782.5,2782.4,13.157]
[1749606493337,7.5922285,2782.5,2782.4,11.007]
[1749606493639,7.5922285,2782.5,2782.4,1.007]
[1749606495277,7.5922285,2782.5,2782.4,34.48971]
[1749606495582,7.5922285,2782.5,2782.4,33.48271]
[1749606495971,7.5922285,2782.5,2782.4,11.007]
[1749606496168,8.8406285,2782.5,2782.4,11.007]
[1749606496382,8.8406285,2782.5,2782.4,10.0]